[Event "Titled Tuesday Blitz April 19 Late 2022"]
[White "Rosen, Eric"]
[Black "Lopez, Henry"]
[WhiteFideId "2032562"]
[BlackFideId "5203830"]
[WhiteElo "2362"]
[BlackElo "2177"]
[Result "1-0"]
[Round "08"]
[TimeControl "180+1"]
[Date "2022.04.19"]
[WhiteClock "0:00:03"]
[BlackClock "0:00:01"]

1. e4 {[%clk 0:03:00]}  c5 {[%clk 0:02:59]} 2. Nf3 {[%clk 0:03:00]}  d6 {[%clk 0:02:58]} 3. Nc3 {[%clk 0:03:01]}  a6 {[%clk 0:02:58]} 4. e5 {[%clk 0:02:58]}  dxe5 {[%clk 0:02:56]} 5. Nxe5 {[%clk 0:02:59]}  Nf6 {[%clk 0:02:57]} 6. g3 {[%clk 0:02:57]}  e6 {[%clk 0:02:56]} 7. Bg2 {[%clk 0:02:53]}  Bd6 {[%clk 0:02:57]} 8. Nc4 {[%clk 0:02:50]}  Be7 {[%clk 0:02:56]} 9. a4 {[%clk 0:02:50]}  Nc6 {[%clk 0:02:43]} 10. a5 {[%clk 0:02:48]}  O-O {[%clk 0:02:36]} 11. O-O {[%clk 0:02:48]}  Rb8 {[%clk 0:02:31]} 12. d3 {[%clk 0:02:44]}  Nd5 {[%clk 0:02:30]} 13. Bd2 {[%clk 0:02:31]}  Bf6 {[%clk 0:02:15]} 14. Ne4 {[%clk 0:02:28]}  Be7 {[%clk 0:02:14]} 15. Re1 {[%clk 0:02:26]}  e5 {[%clk 0:02:13]} 16. Qf3 {[%clk 0:02:13]}  Be6 {[%clk 0:02:09]} 17. c3 {[%clk 0:02:05]}  Qd7 {[%clk 0:01:49]} 18. Ng5 {[%clk 0:01:42]}  Bxg5 {[%clk 0:01:44]} 19. Bxg5 {[%clk 0:01:41]}  f6 {[%clk 0:01:45]} 20. Bd2 {[%clk 0:01:30]}  Rbd8 {[%clk 0:01:43]} 21. Ne3 {[%clk 0:00:52]}  Nde7 {[%clk 0:01:33]} 22. Bf1 {[%clk 0:00:39]}  c4 {[%clk 0:01:25]} 23. d4 {[%clk 0:00:19]}  exd4 {[%clk 0:01:16]} 24. cxd4 {[%clk 0:00:20]}  Nxd4 {[%clk 0:01:15]} 25. Qg2 {[%clk 0:00:21]}  Nb3 {[%clk 0:01:07]} 26. Bc3 {[%clk 0:00:20]}  Nxa1 {[%clk 0:01:06]} 27. Rxa1 {[%clk 0:00:21]}  Nd5 {[%clk 0:01:02]} 28. Rd1 {[%clk 0:00:10]}  Nxe3 {[%clk 0:00:49]} 29. Rxd7 {[%clk 0:00:10]}  Nxg2 {[%clk 0:00:49]} 30. Rxd8 {[%clk 0:00:03]}  Rxd8 {[%clk 0:00:47]} 31. Kxg2 {[%clk 0:00:03]}  Bd5+ {[%clk 0:00:43]} 32. f3 {[%clk 0:00:03]}  Kf7 {[%clk 0:00:42]} 33. Kf2 {[%clk 0:00:04]}  Re8 {[%clk 0:00:42]} 34. Be2 {[%clk 0:00:03]}  Ke6 {[%clk 0:00:40]} 35. f4 {[%clk 0:00:03]}  Kd7 {[%clk 0:00:39]} 36. Bg4+ {[%clk 0:00:04]}  Kc6 {[%clk 0:00:39]} 37. Bf5 {[%clk 0:00:04]}  g6 {[%clk 0:00:38]} 38. Bc2 {[%clk 0:00:05]}  Kb5 {[%clk 0:00:32]} 39. h4 {[%clk 0:00:02]}  f5 {[%clk 0:00:31]} 40. Bd1 {[%clk 0:00:03]}  Be4 {[%clk 0:00:25]} 41. Be2 {[%clk 0:00:02]}  Bd3 {[%clk 0:00:25]} 42. Bf3 {[%clk 0:00:03]}  Re7 {[%clk 0:00:22]} 43. h5 {[%clk 0:00:03]}  Be4 {[%clk 0:00:20]} 44. Be2 {[%clk 0:00:03]}  Rd7 {[%clk 0:00:19]} 45. hxg6 {[%clk 0:00:03]}  hxg6 {[%clk 0:00:19]} 46. Ke3 {[%clk 0:00:03]}  Bd3 {[%clk 0:00:18]} 47. Bf3 {[%clk 0:00:04]}  Re7+ {[%clk 0:00:13]} 48. Kf2 {[%clk 0:00:04]}  Be4 {[%clk 0:00:12]} 49. Be2 {[%clk 0:00:04]}  Bd3 {[%clk 0:00:12]} 50. Bf3 {[%clk 0:00:05]}  Rh7 {[%clk 0:00:11]} 51. Kg2 {[%clk 0:00:05]}  Rd7 {[%clk 0:00:10]} 52. Kf2 {[%clk 0:00:05]}  Re7 {[%clk 0:00:10]} 53. Bd5 {[%clk 0:00:04]}  Be4 {[%clk 0:00:09]} 54. Bg8 {[%clk 0:00:03]}  Bc2 {[%clk 0:00:07]} 55. Bf6 {[%clk 0:00:03]}  Re8 {[%clk 0:00:06]} 56. Bh7 {[%clk 0:00:03]}  Bd3 {[%clk 0:00:03]} 57. Bc3 {[%clk 0:00:01]}  Re2+ {[%clk 0:00:02]} 58. Kf3 {[%clk 0:00:02]}  Re6 {[%clk 0:00:02]} 59. Bg8 {[%clk 0:00:02]}  Re7 {[%clk 0:00:01]} 60. Kf2 {[%clk 0:00:02]}  Re2+ {[%clk 0:00:01]} 61. Kf3 {[%clk 0:00:03]}  Re7 {[%clk 0:00:01]} 62. Bd5 {[%clk 0:00:03]}  Re2 {[%clk 0:00:01]} 63. Bxb7 {[%clk 0:00:03]} 1-0


[Site "https://www.chess.com"]

[Event "Titled Tuesday Blitz April 19 Late 2022"]
[White "Salem, A.R. Saleh"]
[Black "Ahmadzada, Ahmad"]
[WhiteFideId "9301348"]
[BlackFideId "13413007"]
[WhiteElo "2657"]
[BlackElo "2228"]
[Result "0-1"]
[Round "08"]
[TimeControl "180+1"]
[Date "2022.04.19"]
[WhiteClock "0:00:16"]
[BlackClock "0:00:21"]

1. Nf3 {[%clk 0:03:00]}  Nf6 {[%clk 0:02:59]} 2. g3 {[%clk 0:03:01]}  b6 {[%clk 0:02:59]} 3. Bg2 {[%clk 0:03:01]}  Bb7 {[%clk 0:03:00]} 4. O-O {[%clk 0:03:00]}  c5 {[%clk 0:02:59]} 5. a4 {[%clk 0:02:52]}  a6 {[%clk 0:02:57]} 6. d3 {[%clk 0:02:50]}  e6 {[%clk 0:02:53]} 7. e4 {[%clk 0:02:49]}  d5 {[%clk 0:02:53]} 8. e5 {[%clk 0:02:47]}  Nfd7 {[%clk 0:02:53]} 9. Bf4 {[%clk 0:02:44]}  Nc6 {[%clk 0:02:52]} 10. c4 {[%clk 0:02:42]}  Nb4 {[%clk 0:02:39]} 11. Nc3 {[%clk 0:02:40]}  Be7 {[%clk 0:02:37]} 12. h4 {[%clk 0:02:39]}  O-O {[%clk 0:02:24]} 13. Qe2 {[%clk 0:02:39]}  Nb8 {[%clk 0:02:05]} 14. d4 {[%clk 0:02:37]}  dxc4 {[%clk 0:01:54]} 15. Qxc4 {[%clk 0:02:28]}  cxd4 {[%clk 0:01:28]} 16. Nxd4 {[%clk 0:02:27]}  Bxg2 {[%clk 0:01:25]} 17. Kxg2 {[%clk 0:02:28]}  Qc8 {[%clk 0:01:20]} 18. Qe2 {[%clk 0:02:28]}  N8c6 {[%clk 0:01:19]} 19. Nf3 {[%clk 0:02:26]}  Rd8 {[%clk 0:01:10]} 20. Rad1 {[%clk 0:02:25]}  Qb7 {[%clk 0:00:57]} 21. Qe4 {[%clk 0:02:24]}  h6 {[%clk 0:00:57]} 22. g4 {[%clk 0:02:23]}  Na5 {[%clk 0:00:53]} 23. h5 {[%clk 0:02:10]}  Qxe4 {[%clk 0:00:46]} 24. Nxe4 {[%clk 0:02:11]}  Nd3 {[%clk 0:00:46]} 25. Kg3 {[%clk 0:01:51]}  Nxb2 {[%clk 0:00:41]} 26. Rb1 {[%clk 0:01:51]}  Nxa4 {[%clk 0:00:40]} 27. g5 {[%clk 0:01:51]}  hxg5 {[%clk 0:00:38]} 28. Bxg5 {[%clk 0:01:49]}  Bxg5 {[%clk 0:00:36]} 29. Nfxg5 {[%clk 0:01:50]}  Nc4 {[%clk 0:00:31]} 30. Nf3 {[%clk 0:00:40]}  Rd3 {[%clk 0:00:31]} 31. Kf4 {[%clk 0:00:39]}  Nc3 {[%clk 0:00:25]} 32. h6 {[%clk 0:00:27]}  Nxe4 {[%clk 0:00:21]} 33. Kxe4 {[%clk 0:00:16]}  Rxf3 {[%clk 0:00:21]} 0-1


[Site "https://www.chess.com"]

[Event "Titled Tuesday Blitz April 19 Late 2022"]
[White "Schekachikhin, Maksim"]
[Black "Hasangatin, Ramil"]
[WhiteFideId "24177830"]
[BlackFideId "4122160"]
[WhiteElo "2230"]
[BlackElo "2375"]
[Result "1-0"]
[Round "08"]
[TimeControl "180+1"]
[Date "2022.04.19"]
[WhiteClock "0:00:06"]
[BlackClock "0:00:05"]

1. d4 {[%clk 0:03:00]}  Nf6 {[%clk 0:02:59]} 2. c4 {[%clk 0:03:00]}  e6 {[%clk 0:02:58]} 3. Nc3 {[%clk 0:03:01]}  Bb4 {[%clk 0:02:59]} 4. e3 {[%clk 0:03:01]}  Bxc3+ {[%clk 0:02:58]} 5. bxc3 {[%clk 0:03:01]}  O-O {[%clk 0:02:58]} 6. Bd3 {[%clk 0:03:01]}  d6 {[%clk 0:02:58]} 7. Ne2 {[%clk 0:02:52]}  Nc6 {[%clk 0:02:58]} 8. O-O {[%clk 0:02:52]}  b6 {[%clk 0:02:58]} 9. e4 {[%clk 0:02:50]}  Ba6 {[%clk 0:02:58]} 10. Ng3 {[%clk 0:02:47]}  Na5 {[%clk 0:02:58]} 11. Qe2 {[%clk 0:02:47]}  d5 {[%clk 0:02:41]} 12. cxd5 {[%clk 0:02:43]}  Bxd3 {[%clk 0:02:40]} 13. Qxd3 {[%clk 0:02:44]}  exd5 {[%clk 0:02:40]} 14. e5 {[%clk 0:02:45]}  Ne8 {[%clk 0:02:36]} 15. f4 {[%clk 0:02:36]}  c5 {[%clk 0:02:34]} 16. f5 {[%clk 0:02:36]}  Qc7 {[%clk 0:02:32]} 17. f6 {[%clk 0:02:32]}  cxd4 {[%clk 0:02:28]} 18. fxg7 {[%clk 0:02:29]}  Nxg7 {[%clk 0:02:26]} 19. Bh6 {[%clk 0:02:15]}  Qxc3 {[%clk 0:02:19]} 20. Qe2 {[%clk 0:02:15]}  Ne6 {[%clk 0:02:05]} 21. Rac1 {[%clk 0:02:07]}  Qb4 {[%clk 0:01:57]} 22. Qg4+ {[%clk 0:01:14]}  Kh8 {[%clk 0:01:54]} 23. Bxf8 {[%clk 0:01:15]}  Rxf8 {[%clk 0:01:54]} 24. Nh5 {[%clk 0:01:09]}  Nc4 {[%clk 0:01:35]} 25. Nf6 {[%clk 0:00:55]}  Qd2 {[%clk 0:01:14]} 26. Nxd5 {[%clk 0:00:35]}  Ne3 {[%clk 0:01:03]} 27. Nxe3 {[%clk 0:00:35]}  dxe3 {[%clk 0:00:48]} 28. Rcd1 {[%clk 0:00:29]}  Qc2 {[%clk 0:00:43]} 29. Rde1 {[%clk 0:00:25]}  Qc5 {[%clk 0:00:37]} 30. Kh1 {[%clk 0:00:23]}  Rg8 {[%clk 0:00:33]} 31. Qf3 {[%clk 0:00:21]}  Rg7 {[%clk 0:00:33]} 32. Qxe3 {[%clk 0:00:20]}  Qd5 {[%clk 0:00:34]} 33. Qf3 {[%clk 0:00:20]}  Qxa2 {[%clk 0:00:34]} 34. Rd1 {[%clk 0:00:19]}  h6 {[%clk 0:00:31]} 35. Rf2 {[%clk 0:00:19]}  Qc4 {[%clk 0:00:30]} 36. Qf6 {[%clk 0:00:19]}  Kh7 {[%clk 0:00:27]} 37. h3 {[%clk 0:00:20]}  Qe4 {[%clk 0:00:25]} 38. Qf5+ {[%clk 0:00:20]}  Qxf5 {[%clk 0:00:25]} 39. Rxf5 {[%clk 0:00:21]}  Nc5 {[%clk 0:00:23]} 40. Rd8 {[%clk 0:00:19]}  Kg6 {[%clk 0:00:21]} 41. Rf6+ {[%clk 0:00:19]}  Kg5 {[%clk 0:00:22]} 42. Ra8 {[%clk 0:00:19]}  Nd3 {[%clk 0:00:20]} 43. Rxa7 {[%clk 0:00:17]}  Nxe5 {[%clk 0:00:20]} 44. Rxb6 {[%clk 0:00:17]}  Kf5 {[%clk 0:00:16]} 45. Kh2 {[%clk 0:00:17]}  h5 {[%clk 0:00:16]} 46. Rb5 {[%clk 0:00:16]}  Ke6 {[%clk 0:00:12]} 47. Ra6+ {[%clk 0:00:15]}  Kf5 {[%clk 0:00:12]} 48. Rh6 {[%clk 0:00:14]}  Kg5 {[%clk 0:00:11]} 49. Rh8 {[%clk 0:00:14]}  f6 {[%clk 0:00:12]} 50. Kg3 {[%clk 0:00:13]}  Rd7 {[%clk 0:00:11]} 51. Rg8+ {[%clk 0:00:13]}  Kf5 {[%clk 0:00:11]} 52. Rh8 {[%clk 0:00:13]}  Rd3+ {[%clk 0:00:11]} 53. Kh2 {[%clk 0:00:13]}  Kg6 {[%clk 0:00:11]} 54. Rbb8 {[%clk 0:00:13]}  Rd2 {[%clk 0:00:09]} 55. Rbg8+ {[%clk 0:00:13]}  Kf7 {[%clk 0:00:09]} 56. Rg3 {[%clk 0:00:13]}  h4 {[%clk 0:00:06]} 57. Rxh4 {[%clk 0:00:12]}  Ke6 {[%clk 0:00:06]} 58. Rf4 {[%clk 0:00:12]}  Re2 {[%clk 0:00:05]} 59. h4 {[%clk 0:00:12]}  Ra2 {[%clk 0:00:04]} 60. h5 {[%clk 0:00:12]}  Ra8 {[%clk 0:00:04]} 61. h6 {[%clk 0:00:12]}  Rh8 {[%clk 0:00:05]} 62. Rh4 {[%clk 0:00:12]}  Kf7 {[%clk 0:00:04]} 63. Rg7+ {[%clk 0:00:12]}  Ke6 {[%clk 0:00:04]} 64. h7 {[%clk 0:00:11]}  Nf7 {[%clk 0:00:05]} 65. Rg8 {[%clk 0:00:10]}  Kf5 {[%clk 0:00:04]} 66. Kg3 {[%clk 0:00:08]}  Ke6 {[%clk 0:00:02]} 67. Rh5 {[%clk 0:00:07]}  Ke7 {[%clk 0:00:02]} 68. Kf4 {[%clk 0:00:06]}  Ke6 {[%clk 0:00:02]} 69. g3 {[%clk 0:00:06]}  Ke7 {[%clk 0:00:02]} 70. Kf5 {[%clk 0:00:05]}  Nd6+ {[%clk 0:00:02]} 71. Kg6 {[%clk 0:00:05]}  Nf7 {[%clk 0:00:03]} 72. Rxh8 {[%clk 0:00:05]}  Nxh8+ {[%clk 0:00:03]} 73. Kg7 {[%clk 0:00:06]}  Nf7 {[%clk 0:00:04]} 74. h8=Q {[%clk 0:00:05]}  Nxh8 {[%clk 0:00:05]} 75. Kxh8 {[%clk 0:00:06]} 1-0


[Site "https://www.chess.com"]

[Event "Titled Tuesday Blitz April 19 Late 2022"]
[White "Shimanov, Aleksandr"]
[Black "Janaszak, Dawid"]
[WhiteFideId "4198603"]
[BlackFideId "1119206"]
[WhiteElo "2636"]
[BlackElo "2199"]
[Result "1-0"]
[Round "08"]
[TimeControl "180+1"]
[Date "2022.04.19"]
[WhiteClock "0:02:10"]
[BlackClock "0:00:17"]

1. d4 {[%clk 0:03:00]}  d6 {[%clk 0:02:59]} 2. Nc3 {[%clk 0:03:01]}  g6 {[%clk 0:02:59]} 3. e4 {[%clk 0:03:01]}  Bg7 {[%clk 0:02:59]} 4. Be3 {[%clk 0:02:58]}  a6 {[%clk 0:02:58]} 5. h4 {[%clk 0:02:57]}  h6 {[%clk 0:02:51]} 6. Qd2 {[%clk 0:02:55]}  b5 {[%clk 0:02:51]} 7. O-O-O {[%clk 0:02:55]}  Bb7 {[%clk 0:02:50]} 8. f3 {[%clk 0:02:55]}  Nd7 {[%clk 0:02:50]} 9. Kb1 {[%clk 0:02:52]}  c5 {[%clk 0:02:39]} 10. dxc5 {[%clk 0:02:41]}  Nxc5 {[%clk 0:02:20]} 11. Nge2 {[%clk 0:02:39]}  Rc8 {[%clk 0:02:12]} 12. a3 {[%clk 0:02:37]}  Nf6 {[%clk 0:01:58]} 13. Bd4 {[%clk 0:02:24]}  Ne6 {[%clk 0:01:51]} 14. Be3 {[%clk 0:02:21]}  Nd7 {[%clk 0:01:45]} 15. Nd4 {[%clk 0:02:21]}  Ne5 {[%clk 0:01:39]} 16. Nxe6 {[%clk 0:02:20]}  fxe6 {[%clk 0:01:40]} 17. Bd4 {[%clk 0:02:21]}  O-O {[%clk 0:01:30]} 18. f4 {[%clk 0:02:16]}  Nc4 {[%clk 0:01:30]} 19. Bxc4 {[%clk 0:02:16]}  Rxc4 {[%clk 0:01:26]} 20. Bxg7 {[%clk 0:02:16]}  Kxg7 {[%clk 0:01:27]} 21. h5 {[%clk 0:02:16]}  g5 {[%clk 0:01:06]} 22. fxg5 {[%clk 0:02:14]}  Qb6 {[%clk 0:00:38]} 23. gxh6+ {[%clk 0:02:13]}  Kh7 {[%clk 0:00:37]} 24. Qg5 {[%clk 0:02:13]}  Rg8 {[%clk 0:00:25]} 25. Qxe7+ {[%clk 0:02:12]}  Kh8 {[%clk 0:00:19]} 26. Rxd6 {[%clk 0:02:11]}  Qc5 {[%clk 0:00:17]} 27. Qf6+ {[%clk 0:02:10]} 1-0


[Site "https://www.chess.com"]

[Event "Titled Tuesday Blitz April 19 Late 2022"]
[White "Skliarov, Viktor"]
[Black "Jarocka, Liwia"]
[WhiteFideId "14106736"]
[BlackFideId "21807558"]
[WhiteElo "2229"]
[BlackElo "1896"]
[Result "1-0"]
[Round "08"]
[TimeControl "180+1"]
[Date "2022.04.19"]
[WhiteClock "0:00:22"]
[BlackClock "0:00:22"]

1. e4 {[%clk 0:03:00]}  e5 {[%clk 0:02:55]} 2. Nc3 {[%clk 0:03:00]}  Nc6 {[%clk 0:02:55]} 3. Bc4 {[%clk 0:03:00]}  Nf6 {[%clk 0:02:52]} 4. d3 {[%clk 0:03:00]}  Na5 {[%clk 0:02:44]} 5. Nge2 {[%clk 0:03:00]}  Nxc4 {[%clk 0:02:43]} 6. dxc4 {[%clk 0:03:00]}  Bb4 {[%clk 0:02:42]} 7. O-O {[%clk 0:02:58]}  Bxc3 {[%clk 0:02:41]} 8. Nxc3 {[%clk 0:02:58]}  O-O {[%clk 0:02:42]} 9. c5 {[%clk 0:02:50]}  d6 {[%clk 0:02:41]} 10. cxd6 {[%clk 0:02:49]}  Qxd6 {[%clk 0:02:40]} 11. Qxd6 {[%clk 0:02:46]}  cxd6 {[%clk 0:02:41]} 12. Rd1 {[%clk 0:02:46]}  Rd8 {[%clk 0:02:35]} 13. Bg5 {[%clk 0:02:39]}  Be6 {[%clk 0:02:34]} 14. Rd2 {[%clk 0:02:14]}  Kf8 {[%clk 0:02:29]} 15. Bxf6 {[%clk 0:02:11]}  gxf6 {[%clk 0:02:29]} 16. Rad1 {[%clk 0:02:10]}  Ke7 {[%clk 0:02:25]} 17. Nb5 {[%clk 0:02:05]}  Rd7 {[%clk 0:01:42]} 18. Rxd6 {[%clk 0:01:31]}  Rxd6 {[%clk 0:01:34]} 19. Nxd6 {[%clk 0:01:31]}  b6 {[%clk 0:01:12]} 20. b3 {[%clk 0:01:16]}  a5 {[%clk 0:00:56]} 21. a4 {[%clk 0:01:07]}  Rd8 {[%clk 0:00:37]} 22. Nf5+ {[%clk 0:01:06]}  Bxf5 {[%clk 0:00:37]} 23. Rxd8 {[%clk 0:01:07]}  Kxd8 {[%clk 0:00:38]} 24. exf5 {[%clk 0:01:07]}  Ke7 {[%clk 0:00:38]} 25. f3 {[%clk 0:00:50]}  Kd6 {[%clk 0:00:33]} 26. Kf2 {[%clk 0:00:50]}  Kd5 {[%clk 0:00:33]} 27. Ke3 {[%clk 0:00:50]}  h6 {[%clk 0:00:30]} 28. Kd3 {[%clk 0:00:48]}  Kc5 {[%clk 0:00:28]} 29. Kc3 {[%clk 0:00:27]}  Kd5 {[%clk 0:00:28]} 30. b4 {[%clk 0:00:27]}  e4 {[%clk 0:00:23]} 31. fxe4+ {[%clk 0:00:22]}  Kxe4 {[%clk 0:00:24]} 32. bxa5 {[%clk 0:00:20]}  bxa5 {[%clk 0:00:25]} 33. Kc4 {[%clk 0:00:20]}  Kxf5 {[%clk 0:00:25]} 34. Kd5 {[%clk 0:00:21]}  h5 {[%clk 0:00:25]} 35. c4 {[%clk 0:00:21]}  h4 {[%clk 0:00:25]} 36. c5 {[%clk 0:00:21]}  h3 {[%clk 0:00:25]} 37. gxh3 {[%clk 0:00:21]}  Kg6 {[%clk 0:00:22]} 38. c6 {[%clk 0:00:22]}  f5 {[%clk 0:00:22]} 39. c7 {[%clk 0:00:22]} 1-0


[Site "https://www.chess.com"]

[Event "Titled Tuesday Blitz April 19 Late 2022"]
[White "Sowa, Ryan"]
[Black "Saldano Dayer, Horacio"]
[WhiteFideId "30901693"]
[BlackFideId "103411"]
[WhiteElo "2627"]
[BlackElo "2506"]
[Result "1-0"]
[Round "08"]
[TimeControl "180+1"]
[Date "2022.04.19"]
[WhiteClock "0:00:07"]
[BlackClock "0:00:16"]

1. Nf3 {[%clk 0:03:00]}  d6 {[%clk 0:02:57]} 2. d4 {[%clk 0:03:00]}  Nf6 {[%clk 0:02:56]} 3. c4 {[%clk 0:03:01]}  g6 {[%clk 0:02:55]} 4. Nc3 {[%clk 0:03:01]}  Bf5 {[%clk 0:02:55]} 5. Nh4 {[%clk 0:03:00]}  Bd7 {[%clk 0:02:54]} 6. Nf3 {[%clk 0:03:00]}  Bf5 {[%clk 0:02:53]} 7. Nh4 {[%clk 0:02:59]}  Bd7 {[%clk 0:02:53]} 8. g3 {[%clk 0:02:58]}  e5 {[%clk 0:02:44]} 9. Nf3 {[%clk 0:02:49]}  Nc6 {[%clk 0:02:39]} 10. Bg2 {[%clk 0:02:47]}  Bg7 {[%clk 0:02:36]} 11. O-O {[%clk 0:02:45]}  O-O {[%clk 0:02:36]} 12. d5 {[%clk 0:02:46]}  Nb8 {[%clk 0:02:34]} 13. h3 {[%clk 0:02:44]}  a5 {[%clk 0:02:34]} 14. Ne1 {[%clk 0:02:44]}  Na6 {[%clk 0:02:33]} 15. Nd3 {[%clk 0:02:43]}  b6 {[%clk 0:02:29]} 16. e4 {[%clk 0:02:40]}  Nc5 {[%clk 0:02:27]} 17. b3 {[%clk 0:02:33]}  Qc8 {[%clk 0:02:16]} 18. Nxc5 {[%clk 0:02:32]}  bxc5 {[%clk 0:02:15]} 19. Kh2 {[%clk 0:02:33]}  a4 {[%clk 0:02:13]} 20. Nxa4 {[%clk 0:02:30]}  Bxa4 {[%clk 0:02:12]} 21. bxa4 {[%clk 0:02:31]}  Qa6 {[%clk 0:02:12]} 22. Qd3 {[%clk 0:02:06]}  Qxa4 {[%clk 0:02:11]} 23. Be3 {[%clk 0:01:52]}  Nd7 {[%clk 0:02:09]} 24. Rfb1 {[%clk 0:01:50]}  Nb6 {[%clk 0:02:08]} 25. Bf1 {[%clk 0:01:50]}  f5 {[%clk 0:02:04]} 26. exf5 {[%clk 0:01:50]}  gxf5 {[%clk 0:02:04]} 27. Qd2 {[%clk 0:01:31]}  Nxc4 {[%clk 0:01:50]} 28. Bxc4 {[%clk 0:01:30]}  Qxc4 {[%clk 0:01:51]} 29. Bh6 {[%clk 0:01:31]}  f4 {[%clk 0:01:48]} 30. Bxg7 {[%clk 0:01:30]}  Kxg7 {[%clk 0:01:49]} 31. Rc1 {[%clk 0:01:21]}  Qe4 {[%clk 0:01:46]} 32. Re1 {[%clk 0:01:20]}  fxg3+ {[%clk 0:01:43]} 33. fxg3 {[%clk 0:01:18]}  Qg6 {[%clk 0:01:41]} 34. a4 {[%clk 0:01:16]}  Rf3 {[%clk 0:01:38]} 35. Rg1 {[%clk 0:01:17]}  Raf8 {[%clk 0:01:36]} 36. Rg2 {[%clk 0:01:17]}  Rd3 {[%clk 0:01:34]} 37. Qe1 {[%clk 0:01:06]}  Rff3 {[%clk 0:01:30]} 38. a5 {[%clk 0:01:06]}  Rde3 {[%clk 0:01:30]} 39. Qg1 {[%clk 0:01:05]}  Qe4 {[%clk 0:01:05]} 40. a6 {[%clk 0:01:02]}  Qxd5 {[%clk 0:01:05]} 41. a7 {[%clk 0:01:02]}  Qa8 {[%clk 0:01:05]} 42. Qb1 {[%clk 0:00:33]}  Rb3 {[%clk 0:01:03]} 43. Qa2 {[%clk 0:00:26]}  h5 {[%clk 0:00:44]} 44. Qa4 {[%clk 0:00:26]}  c6 {[%clk 0:00:37]} 45. Qh4 {[%clk 0:00:25]}  Kg6 {[%clk 0:00:29]} 46. Qe7 {[%clk 0:00:23]}  Rfd3 {[%clk 0:00:26]} 47. Qe6+ {[%clk 0:00:21]}  Kg7 {[%clk 0:00:26]} 48. Rf1 {[%clk 0:00:18]}  Rf3 {[%clk 0:00:20]} 49. Ra1 {[%clk 0:00:14]}  Rbd3 {[%clk 0:00:18]} 50. Qd7+ {[%clk 0:00:11]}  Kg6 {[%clk 0:00:18]} 51. Qc7 {[%clk 0:00:11]}  h4 {[%clk 0:00:17]} 52. Qb8 {[%clk 0:00:09]}  hxg3+ {[%clk 0:00:16]} 53. Kh1 {[%clk 0:00:09]}  Ra3 {[%clk 0:00:14]} 54. Rxa3 {[%clk 0:00:07]}  Rxa3 {[%clk 0:00:14]} 55. Qxa8 {[%clk 0:00:07]}  Ra1+ {[%clk 0:00:14]} 56. Rg1 {[%clk 0:00:07]}  Ra2 {[%clk 0:00:15]} 57. Rxg3+ {[%clk 0:00:06]}  Kf5 {[%clk 0:00:15]} 58. Qf8+ {[%clk 0:00:06]}  Ke4 {[%clk 0:00:15]} 59. Qf3+ {[%clk 0:00:07]}  Kd4 {[%clk 0:00:16]} 60. Qd3# {[%clk 0:00:07]} 1-0


[Site "https://www.chess.com"]